[Event "Early-Titled-Tuesday-Blitz-April-02-2024"]
[Site "Chess.com"]
[Date "2024.04.02"]
[Round "1"]
[White "MikeSailer"]
[Black "JiaHaoxiang"]
[Result "1/2-1/2"]
[WhiteElo "2143"]
[BlackElo "2564"]
[TimeControl "180+1"]
[EndTime "8:07:21 PDT"]
[Termination "Game drawn by repetition"]

1. d4 {[%clk 0:02:59.4]} 1... Nf6 {[%clk 0:02:59.4]} 2. Nf3 {[%clk 0:03:00]}
2... g6 {[%clk 0:02:59.4]} 3. Bf4 {[%clk 0:03:00.6]} 3... Bg7 {[%clk 0:03:00]}
4. e3 {[%clk 0:03:01.4]} 4... O-O {[%clk 0:02:59.9]} 5. Be2 {[%clk 0:03:02.2]}
5... d6 {[%clk 0:03:00.5]} 6. h3 {[%clk 0:03:02]} 6... b6 {[%clk 0:02:59.2]} 7.
O-O {[%clk 0:03:02.1]} 7... Bb7 {[%clk 0:02:59.8]} 8. a4 {[%clk 0:03:02.4]} 8...
a6 {[%clk 0:02:59.2]} 9. c4 {[%clk 0:03:01.6]} 9... Nbd7 {[%clk 0:02:59]} 10. a5
{[%clk 0:03:02]} 10... bxa5 {[%clk 0:02:47]} 11. Rxa5 {[%clk 0:02:53.4]} 11...
c5 {[%clk 0:02:46.8]} 12. Qa4 {[%clk 0:02:53.6]} 12... cxd4 {[%clk 0:02:44]} 13.
exd4 {[%clk 0:02:52.6]} 13... Nb6 {[%clk 0:02:35.9]} 14. Qa3 {[%clk 0:02:36.4]}
14... Bxf3 {[%clk 0:02:35.4]} 15. gxf3 {[%clk 0:02:34.6]} 15... d5 {[%clk
0:02:33.5]} 16. c5 {[%clk 0:02:25.6]} 16... Nc4 {[%clk 0:02:33.1]} 17. Bxc4
{[%clk 0:02:25.7]} 17... dxc4 {[%clk 0:02:33.8]} 18. Be5 {[%clk 0:02:13.8]}
18... Nd5 {[%clk 0:02:32.1]} 19. Rxa6 {[%clk 0:02:05.7]} 19... Bxe5 {[%clk
0:02:28]} 20. dxe5 {[%clk 0:02:05.8]} 20... Rc8 {[%clk 0:02:09.9]} 21. Nc3
{[%clk 0:01:55.2]} 21... Nf4 {[%clk 0:02:06.5]} 22. Rd1 {[%clk 0:01:47.8]} 22...
Qc7 {[%clk 0:02:06.1]} 23. Nd5 {[%clk 0:01:20]} 23... Qxe5 {[%clk 0:02:02.4]}
24. Nxf4 {[%clk 0:01:20.2]} 24... Qxf4 {[%clk 0:02:02.1]} 25. c6 {[%clk
0:01:04.9]} 25... Qg5+ {[%clk 0:01:50]} 26. Kh1 {[%clk 0:00:54.8]} 26... Rfd8
{[%clk 0:01:49.2]} 27. Rxd8+ {[%clk 0:00:42.2]} 27... Rxd8 {[%clk 0:01:48.3]}
28. Ra8 {[%clk 0:00:41.5]} 28... Qc1+ {[%clk 0:01:32]} 29. Kg2 {[%clk
0:00:37.5]} 29... Qg5+ {[%clk 0:01:32]} 30. Kh1 {[%clk 0:00:34.9]} 30... Rxa8
{[%clk 0:01:10.5]} 31. Qxa8+ {[%clk 0:00:34.7]} 31... Kg7 {[%clk 0:01:11.4]} 32.
Qb8 {[%clk 0:00:10.4]} 32... Qf6 {[%clk 0:00:58.3]} 33. c7 {[%clk 0:00:07.5]}
33... Qxf3+ {[%clk 0:00:58.2]} 34. Kg1 {[%clk 0:00:08.1]} 34... Qd1+ {[%clk
0:00:56.5]} 35. Kh2 {[%clk 0:00:08.8]} 35... Qd6+ {[%clk 0:00:56.2]} 36. Kg1
{[%clk 0:00:09.4]} 36... Qd1+ {[%clk 0:00:54.1]} 37. Kg2 {[%clk 0:00:09]} 37...
Qd5+ {[%clk 0:00:53.7]} 38. Kf1 {[%clk 0:00:08.8]} 38... Qh1+ {[%clk 0:00:51.3]}
39. Ke2 {[%clk 0:00:09.3]} 39... Qe4+ {[%clk 0:00:51.3]} 40. Kf1 {[%clk
0:00:09]} 40... Qh1+ {[%clk 0:00:42]} 41. Ke2 {[%clk 0:00:08.9]} 41... Qe4+
{[%clk 0:00:42.5]} 42. Kf1 {[%clk 0:00:09.5]} 42... Qd3+ {[%clk 0:00:41]} 43.
Kg2 {[%clk 0:00:09.7]} 43... Qd5+ {[%clk 0:00:41.3]} 44. Kf1 {[%clk 0:00:10]}
44... Qd1+ {[%clk 0:00:38.6]} 45. Kg2 {[%clk 0:00:10.5]} 45... Qd5+ {[%clk
0:00:39.3]} 1/2-1/2

[Event "Early-Titled-Tuesday-Blitz-April-02-2024"]
[Site "Chess.com"]
[Date "2024.04.02"]
[Round "1"]
[White "GiorgianBarbosa"]
[Black "KNVB"]
[Result "0-1"]
[WhiteElo "2478"]
[BlackElo "2807"]
[TimeControl "180+1"]
[EndTime "8:07:22 PDT"]
[Termination "KNVB won on time"]

1. c4 {[%clk 0:02:59.1]} 1... c5 {[%clk 0:02:57]} 2. g3 {[%clk 0:02:58.9]} 2...
Nf6 {[%clk 0:02:48.8]} 3. Bg2 {[%clk 0:02:58.9]} 3... e6 {[%clk 0:02:49.5]} 4.
Nc3 {[%clk 0:02:58.4]} 4... d5 {[%clk 0:02:41.5]} 5. cxd5 {[%clk 0:02:55.8]}
5... exd5 {[%clk 0:02:42.4]} 6. Nf3 {[%clk 0:02:52.7]} 6... d4 {[%clk
0:02:42.3]} 7. Nb1 {[%clk 0:02:41.2]} 7... Nc6 {[%clk 0:02:41]} 8. a4 {[%clk
0:02:39.3]} 8... Bd6 {[%clk 0:02:37.7]} 9. O-O {[%clk 0:02:37.3]} 9... O-O
{[%clk 0:02:38.1]} 10. d3 {[%clk 0:02:36.8]} 10... h6 {[%clk 0:02:36.5]} 11. Na3
{[%clk 0:02:34.7]} 11... Re8 {[%clk 0:02:24.9]} 12. Nc4 {[%clk 0:02:31.1]} 12...
Bc7 {[%clk 0:02:25.3]} 13. e4 {[%clk 0:02:26]} 13... dxe3 {[%clk 0:02:20.4]} 14.
Bxe3 {[%clk 0:02:25.3]} 14... Bf5 {[%clk 0:01:44.5]} 15. d4 {[%clk 0:02:22.8]}
15... Ng4 {[%clk 0:01:01.5]} 16. d5 {[%clk 0:02:08.5]} 16... Na5 {[%clk
0:00:46.3]} 17. Nxa5 {[%clk 0:01:46.4]} 17... Nxe3 {[%clk 0:00:45.8]} 18. fxe3
{[%clk 0:01:27]} 18... Bxa5 {[%clk 0:00:44.7]} 19. Nh4 {[%clk 0:01:20.8]} 19...
Bd7 {[%clk 0:00:16.4]} 20. Nf5 {[%clk 0:01:19.6]} 20... Bxf5 {[%clk 0:00:04.3]}
21. Rxf5 {[%clk 0:01:20.5]} 21... Bc7 {[%clk 0:00:03.8]} 22. e4 {[%clk
0:01:19.1]} 22... Bd6 {[%clk 0:00:02.7]} 23. Qg4 {[%clk 0:01:17.8]} 23... g6
{[%clk 0:00:02.2]} 24. Rf2 {[%clk 0:01:15.6]} 24... Re5 {[%clk 0:00:02.1]} 25.
Raf1 {[%clk 0:01:14.9]} 25... Re7 {[%clk 0:00:02.4]} 26. h4 {[%clk 0:01:13.7]}
26... h5 {[%clk 0:00:02.7]} 27. Qf4 {[%clk 0:01:12.6]} 27... Bxf4 {[%clk
0:00:03]} 28. Rxf4 {[%clk 0:01:13.1]} 28... Qd6 {[%clk 0:00:03.1]} 29. Bf3
{[%clk 0:01:11.6]} 29... c4 {[%clk 0:00:03.3]} 30. g4 {[%clk 0:01:12.5]} 30...
Qxf4 {[%clk 0:00:03.3]} 31. gxh5 {[%clk 0:01:12.7]} 31... Qg3+ {[%clk
0:00:03.9]} 32. Bg2 {[%clk 0:01:12.5]} 32... Rxe4 {[%clk 0:00:04.1]} 33. hxg6
{[%clk 0:01:13.4]} 33... Re2 {[%clk 0:00:04.4]} 0-1

[Event "Early-Titled-Tuesday-Blitz-April-02-2024"]
[Site "Chess.com"]
[Date "2024.04.02"]
[Round "1"]
[White "IsuruAlahakoon"]
[Black "Fy_Rakotomaharo"]
[Result "0-1"]
[WhiteElo "2402"]
[BlackElo "2709"]
[TimeControl "180+1"]
[EndTime "8:07:22 PDT"]
[Termination "Fy_Rakotomaharo won by resignation"]

1. Nf3 {[%clk 0:02:59.8]} 1... Nf6 {[%clk 0:02:58.6]} 2. d4 {[%clk 0:02:59.5]}
2... g6 {[%clk 0:02:58.8]} 3. Bg5 {[%clk 0:02:56.1]} 3... Bg7 {[%clk 0:02:59]}
4. Nbd2 {[%clk 0:02:55.3]} 4... O-O {[%clk 0:02:57.7]} 5. c3 {[%clk 0:02:46.5]}
5... c5 {[%clk 0:02:57.8]} 6. e3 {[%clk 0:02:41.5]} 6... b6 {[%clk 0:02:48.3]}
7. Bd3 {[%clk 0:02:39.9]} 7... Bb7 {[%clk 0:02:48.1]} 8. O-O {[%clk 0:02:39.7]}
8... d6 {[%clk 0:02:47.8]} 9. a4 {[%clk 0:02:36.9]} 9... a6 {[%clk 0:02:45.1]}
10. Re1 {[%clk 0:02:36.2]} 10... Nbd7 {[%clk 0:02:44.7]} 11. h3 {[%clk
0:02:30.5]} 11... Qc7 {[%clk 0:02:32.2]} 12. Rc1 {[%clk 0:02:28.4]} 12... Rfc8
{[%clk 0:02:27.9]} 13. Qe2 {[%clk 0:02:22.2]} 13... Qd8 {[%clk 0:02:21]} 14. e4
{[%clk 0:02:19.6]} 14... cxd4 {[%clk 0:02:18.4]} 15. cxd4 {[%clk 0:02:20.5]}
15... e5 {[%clk 0:02:18.2]} 16. Nc4 {[%clk 0:02:16.8]} 16... Qe7 {[%clk
0:02:17.7]} 17. Rcd1 {[%clk 0:02:13.5]} 17... h6 {[%clk 0:02:11.5]} 18. Bh4
{[%clk 0:02:12.1]} 18... exd4 {[%clk 0:02:07]} 19. Nxd4 {[%clk 0:02:01.6]} 19...
Ne5 {[%clk 0:02:05]} 20. Nxe5 {[%clk 0:01:49.8]} 20... dxe5 {[%clk 0:01:59.2]}
21. Nf3 {[%clk 0:01:49.3]} 21... g5 {[%clk 0:01:49.9]} 22. Bg3 {[%clk
0:01:46.2]} 22... Nh5 {[%clk 0:01:50.2]} 23. Bxe5 {[%clk 0:01:42.5]} 23... Bxe5
{[%clk 0:01:48.1]} 24. Nxe5 {[%clk 0:01:41.4]} 24... Nf4 {[%clk 0:01:48.8]} 25.
Qg4 {[%clk 0:01:19.9]} 25... Qxe5 {[%clk 0:01:48.1]} 26. Bb1 {[%clk 0:01:10.6]}
26... Qe6 {[%clk 0:01:43.9]} 27. Qg3 {[%clk 0:01:09.3]} 27... Rd8 {[%clk
0:01:44]} 28. Rxd8+ {[%clk 0:01:06.2]} 28... Rxd8 {[%clk 0:01:43.3]} 29. h4
{[%clk 0:01:07.1]} 29... Rd1 {[%clk 0:01:42.2]} 30. Qe3 {[%clk 0:00:58.8]} 30...
Qg4 {[%clk 0:01:30.3]} 31. g3 {[%clk 0:00:49.3]} 31... Rxe1+ {[%clk 0:01:28.7]}
32. Qxe1 {[%clk 0:00:48.5]} 32... gxh4 {[%clk 0:01:29.4]} 33. Qd2 {[%clk
0:00:41.5]} 33... hxg3 {[%clk 0:01:24.5]} 34. Qd8+ {[%clk 0:00:40.9]} 34... Kg7
{[%clk 0:01:24.9]} 35. Qd4+ {[%clk 0:00:40.4]} 35... f6 {[%clk 0:01:25.4]} 36.
f3 {[%clk 0:00:35.4]} 36... Ne2+ {[%clk 0:01:19.3]} 37. Kg2 {[%clk 0:00:34.8]}
37... Qxf3+ {[%clk 0:01:13.3]} 38. Kxf3 {[%clk 0:00:33.9]} 38... Nxd4+ {[%clk
0:01:14]} 39. Kxg3 {[%clk 0:00:34.8]} 39... Kf7 {[%clk 0:01:10.9]} 40. Kf4
{[%clk 0:00:34.8]} 40... Ke7 {[%clk 0:01:09.5]} 41. e5 {[%clk 0:00:34.3]} 41...
fxe5+ {[%clk 0:01:08.7]} 42. Kxe5 {[%clk 0:00:35.2]} 42... Nf3+ {[%clk
0:01:06.2]} 43. Kf4 {[%clk 0:00:33]} 43... Ng5 {[%clk 0:01:05.8]} 44. Kg4 {[%clk
0:00:31.6]} 44... a5 {[%clk 0:01:05.7]} 45. Kh5 {[%clk 0:00:31.2]} 45... Nf7
{[%clk 0:01:06]} 46. Kg6 {[%clk 0:00:28.5]} 46... Bc6 {[%clk 0:01:05.4]} 47. Bc2
{[%clk 0:00:27.3]} 47... Be8 {[%clk 0:01:05.1]} 48. Kh5 {[%clk 0:00:25.8]} 48...
Kd6 {[%clk 0:01:04.4]} 49. Kg6 {[%clk 0:00:19.7]} 49... Kc5 {[%clk 0:01:04.1]}
50. Kf6 {[%clk 0:00:20.6]} 50... h5 {[%clk 0:01:01.4]} 51. Ke7 {[%clk
0:00:20.3]} 51... Nd6 {[%clk 0:01:01.4]} 52. Bd1 {[%clk 0:00:17.1]} 52... h4
{[%clk 0:01:01.6]} 53. b3 {[%clk 0:00:15.2]} 53... h3 {[%clk 0:01:01.1]} 54. Bf3
{[%clk 0:00:14.2]} 54... h2 {[%clk 0:01:01.6]} 55. Ke6 {[%clk 0:00:12.9]} 55...
Bc6 {[%clk 0:01:01.7]} 0-1

[Event "Early-Titled-Tuesday-Blitz-April-02-2024"]
[Site "Chess.com"]
[Date "2024.04.02"]
[Round "1"]
[White "Dixit_Nikhil"]
[Black "Felix-Rose"]
[Result "1-0"]
[WhiteElo "2625"]
[BlackElo "2304"]
[TimeControl "180+1"]
[EndTime "8:07:24 PDT"]
[Termination "Dixit_Nikhil won by resignation"]

1. e4 {[%clk 0:02:55.5]} 1... e5 {[%clk 0:02:59.6]} 2. Nf3 {[%clk 0:02:55.4]}
2... Nc6 {[%clk 0:02:59.8]} 3. Bb5 {[%clk 0:02:52.8]} 3... a6 {[%clk 0:02:59.9]}
4. Ba4 {[%clk 0:02:52.6]} 4... Nf6 {[%clk 0:03:00.1]} 5. O-O {[%clk 0:02:50.1]}
5... b5 {[%clk 0:03:00.4]} 6. Bb3 {[%clk 0:02:49.6]} 6... Bc5 {[%clk 0:03:00.4]}
7. d3 {[%clk 0:02:42]} 7... d6 {[%clk 0:02:59.7]} 8. Nc3 {[%clk 0:02:41.9]} 8...
Bb6 {[%clk 0:02:53.3]} 9. Nd5 {[%clk 0:02:38.1]} 9... Nxd5 {[%clk 0:02:49.2]}
10. Bxd5 {[%clk 0:02:33.4]} 10... Bb7 {[%clk 0:02:40.5]} 11. Ng5 {[%clk
0:02:28]} 11... Rf8 {[%clk 0:01:49.1]} 12. Nxh7 {[%clk 0:01:59.7]} 12... Rh8
{[%clk 0:01:34.2]} 13. Ng5 {[%clk 0:01:58.1]} 13... Qf6 {[%clk 0:01:31.5]} 14.
Bxf7+ {[%clk 0:01:47.9]} 14... Ke7 {[%clk 0:01:29.6]} 15. Bd5 {[%clk 0:01:47]}
15... Raf8 {[%clk 0:01:18.2]} 16. Be3 {[%clk 0:01:40.9]} 16... Bxe3 {[%clk
0:01:13.1]} 17. fxe3 {[%clk 0:01:41.4]} 17... Qxg5 {[%clk 0:01:12.8]} 18. Qe2
{[%clk 0:01:42]} 18... Qh4 {[%clk 0:01:07.4]} 19. h3 {[%clk 0:01:39.7]} 19...
Qg5 {[%clk 0:01:03.6]} 20. Rxf8 {[%clk 0:01:38.5]} 20... Rxf8 {[%clk 0:01:02.6]}
21. a4 {[%clk 0:01:34.8]} 21... b4 {[%clk 0:01:01.5]} 22. c3 {[%clk 0:01:34.2]}
22... bxc3 {[%clk 0:00:56.3]} 23. bxc3 {[%clk 0:01:34.7]} 23... Nd8 {[%clk
0:00:56.8]} 24. Bxb7 {[%clk 0:01:30.8]} 24... Nxb7 {[%clk 0:00:57.7]} 25. d4
{[%clk 0:01:31.3]} 25... Qf6 {[%clk 0:00:53]} 26. Qxa6 {[%clk 0:01:27.7]} 26...
Qf2+ {[%clk 0:00:52.1]} 27. Kh1 {[%clk 0:01:28.1]} 27... Qb2 {[%clk 0:00:47.6]}
28. Rg1 {[%clk 0:01:26.3]} 28... Rf2 {[%clk 0:00:44.9]} 29. a5 {[%clk
0:01:21.9]} 29... Qb3 {[%clk 0:00:40.3]} 30. Qc6 {[%clk 0:01:16.4]} 30... Nxa5
{[%clk 0:00:31.3]} 31. Qxc7+ {[%clk 0:01:16.2]} 31... Kf6 {[%clk 0:00:22.6]} 32.
Qxd6+ {[%clk 0:01:05.6]} 32... Kf7 {[%clk 0:00:20.3]} 33. Qc7+ {[%clk
0:00:55.9]} 33... Kg6 {[%clk 0:00:20.4]} 34. Qxa5 {[%clk 0:00:54.9]} 34... exd4
{[%clk 0:00:20.7]} 35. cxd4 {[%clk 0:00:51.4]} 35... Qxe3 {[%clk 0:00:20.6]} 36.
Qe5 {[%clk 0:00:51.4]} 36... Kh6 {[%clk 0:00:11.5]} 37. d5 {[%clk 0:00:49.5]}
37... Rf4 {[%clk 0:00:10.8]} 38. Qe6+ {[%clk 0:00:48]} 38... Kh7 {[%clk
0:00:08.9]} 39. d6 {[%clk 0:00:48.3]} 39... Rxe4 {[%clk 0:00:09.3]} 40. Qf5+
{[%clk 0:00:48.2]} 40... g6 {[%clk 0:00:09.9]} 41. Qf7+ {[%clk 0:00:48.3]} 41...
Kh6 {[%clk 0:00:10.7]} 42. d7 {[%clk 0:00:48.8]} 42... Rd4 {[%clk 0:00:10.7]}
43. Qf8+ {[%clk 0:00:48.3]} 43... Kh5 {[%clk 0:00:10]} 44. d8=Q {[%clk
0:00:48.8]} 44... Rxd8 {[%clk 0:00:09.9]} 45. Qxd8 {[%clk 0:00:49.7]} 45... g5
{[%clk 0:00:08.9]} 46. Qh8+ {[%clk 0:00:47.4]} 46... Kg6 {[%clk 0:00:09.4]} 47.
Rf1 {[%clk 0:00:45.6]} 1-0

[Event "Early-Titled-Tuesday-Blitz-April-02-2024"]
[Site "Chess.com"]
[Date "2024.04.02"]
[Round "1"]
[White "Slovineanu"]
[Black "Imagine_Drag0n"]
[Result "1/2-1/2"]
[WhiteElo "2480"]
[BlackElo "2794"]
[TimeControl "180+1"]
[EndTime "8:07:27 PDT"]
[Termination "Game drawn by repetition"]

1. d4 {[%clk 0:02:59.5]} 1... Nf6 {[%clk 0:02:59.2]} 2. Nf3 {[%clk 0:02:59.5]}
2... d5 {[%clk 0:02:56.1]} 3. c4 {[%clk 0:02:58.8]} 3... e6 {[%clk 0:02:52.9]}
4. e3 {[%clk 0:02:58.5]} 4... b6 {[%clk 0:02:51.6]} 5. b3 {[%clk 0:02:57.4]}
5... Bb7 {[%clk 0:02:50]} 6. Bd3 {[%clk 0:02:57.8]} 6... Bd6 {[%clk 0:02:49.9]}
7. O-O {[%clk 0:02:57.3]} 7... O-O {[%clk 0:02:50.1]} 8. Bb2 {[%clk 0:02:57.6]}
8... Nbd7 {[%clk 0:02:49.1]} 9. Nc3 {[%clk 0:02:58]} 9... a6 {[%clk 0:02:45.8]}
10. Rc1 {[%clk 0:02:58]} 10... Qe7 {[%clk 0:02:45.5]} 11. a4 {[%clk 0:02:57.4]}
11... dxc4 {[%clk 0:02:43.6]} 12. bxc4 {[%clk 0:02:57.1]} 12... e5 {[%clk
0:02:43.6]} 13. e4 {[%clk 0:02:52.9]} 13... exd4 {[%clk 0:02:41.5]} 14. Nxd4
{[%clk 0:02:52.7]} 14... Qe5 {[%clk 0:01:56.9]} 15. Nf3 {[%clk 0:02:52.1]} 15...
Qh5 {[%clk 0:01:56.8]} 16. Nd5 {[%clk 0:02:12.5]} 16... Bxd5 {[%clk 0:01:49.9]}
17. cxd5 {[%clk 0:02:09.4]} 17... Rfe8 {[%clk 0:01:45.9]} 18. Re1 {[%clk
0:02:05]} 18... Nc5 {[%clk 0:01:07.8]} 19. e5 {[%clk 0:01:50.9]} 19... Ng4
{[%clk 0:01:05.5]} 20. exd6 {[%clk 0:01:14.7]} 20... Rxe1+ {[%clk 0:01:04.4]}
21. Qxe1 {[%clk 0:01:13.8]} 21... Nxd3 {[%clk 0:01:04.3]} 22. Qc3 {[%clk
0:01:14.4]} 22... Nde5 {[%clk 0:01:01.3]} 23. Nxe5 {[%clk 0:01:08.8]} 23...
Qxh2+ {[%clk 0:00:59.7]} 24. Kf1 {[%clk 0:01:08.9]} 24... Qh1+ {[%clk
0:00:09.7]} 25. Ke2 {[%clk 0:01:08.9]} 25... Qh5 {[%clk 0:00:10.6]} 26. Nxg4
{[%clk 0:01:04]} 26... Qxg4+ {[%clk 0:00:11.5]} 27. Kf1 {[%clk 0:01:04]} 27...
cxd6 {[%clk 0:00:10.9]} 28. Qd4 {[%clk 0:00:37.3]} 28... Qg6 {[%clk 0:00:07.9]}
29. Qxb6 {[%clk 0:00:22.7]} 29... h5 {[%clk 0:00:08.1]} 30. Qb7 {[%clk
0:00:17.3]} 30... Re8 {[%clk 0:00:05.2]} 31. Kg1 {[%clk 0:00:14.1]} 31... Kh7
{[%clk 0:00:03.1]} 32. Qb3 {[%clk 0:00:12.4]} 32... Re4 {[%clk 0:00:03.3]} 33.
Qc2 {[%clk 0:00:12.2]} 33... h4 {[%clk 0:00:02.5]} 34. f3 {[%clk 0:00:12.3]}
34... Re1+ {[%clk 0:00:02.6]} 35. Kh2 {[%clk 0:00:09.9]} 35... f5 {[%clk
0:00:03.3]} 36. Rxe1 {[%clk 0:00:09]} 36... Qg3+ {[%clk 0:00:04]} 37. Kg1 {[%clk
0:00:09]} 37... Qxe1+ {[%clk 0:00:04.8]} 38. Kh2 {[%clk 0:00:09.6]} 38... Qg3+
{[%clk 0:00:05.6]} 39. Kg1 {[%clk 0:00:10]} 39... Qe1+ {[%clk 0:00:05.8]} 40.
Kh2 {[%clk 0:00:10.3]} 40... Qg3+ {[%clk 0:00:06.5]} 41. Kg1 {[%clk 0:00:10.7]}
41... Qe1+ {[%clk 0:00:07.1]} 1/2-1/2

[Event "Early-Titled-Tuesday-Blitz-April-02-2024"]
[Site "Chess.com"]
[Date "2024.04.02"]
[Round "1"]
[White "Alexchess1984"]
[Black "ural58"]
[Result "0-1"]
[WhiteElo "2763"]
[BlackElo "2472"]
[TimeControl "180+1"]
[EndTime "8:07:27 PDT"]
[Termination "ural58 won by checkmate"]

1. e4 {[%clk 0:03:00.9]} 1... d5 {[%clk 0:02:58.7]} 2. exd5 {[%clk 0:03:00.6]}
2... Qxd5 {[%clk 0:02:58.7]} 3. Nc3 {[%clk 0:03:00.4]} 3... Qd6 {[%clk
0:02:58.9]} 4. d4 {[%clk 0:02:57.6]} 4... c6 {[%clk 0:02:58.8]} 5. Nf3 {[%clk
0:02:56.9]} 5... Bf5 {[%clk 0:02:58.2]} 6. Bd3 {[%clk 0:02:50]} 6... Bxd3 {[%clk
0:02:55.8]} 7. Qxd3 {[%clk 0:02:50.7]} 7... Nf6 {[%clk 0:02:56]} 8. O-O {[%clk
0:02:50.4]} 8... e6 {[%clk 0:02:48.6]} 9. Ne4 {[%clk 0:02:48.9]} 9... Nxe4
{[%clk 0:02:47.3]} 10. Qxe4 {[%clk 0:02:49.8]} 10... Nd7 {[%clk 0:02:46.5]} 11.
c4 {[%clk 0:02:49.1]} 11... Nf6 {[%clk 0:02:46.5]} 12. Qc2 {[%clk 0:02:46.4]}
12... Be7 {[%clk 0:02:41.5]} 13. Bg5 {[%clk 0:02:37.7]} 13... O-O {[%clk
0:02:39.9]} 14. Rad1 {[%clk 0:02:34]} 14... h6 {[%clk 0:02:37.5]} 15. Be3 {[%clk
0:02:32.9]} 15... b5 {[%clk 0:02:34.1]} 16. b3 {[%clk 0:02:32]} 16... bxc4
{[%clk 0:02:33.7]} 17. bxc4 {[%clk 0:02:31.3]} 17... Rab8 {[%clk 0:02:34]} 18.
h3 {[%clk 0:02:29.4]} 18... Rfd8 {[%clk 0:02:32.4]} 19. g3 {[%clk 0:02:08.7]}
19... Qa3 {[%clk 0:02:29.9]} 20. Rb1 {[%clk 0:02:05.5]} 20... Bd6 {[%clk
0:02:24.4]} 21. Kg2 {[%clk 0:01:35.4]} 21... c5 {[%clk 0:02:18.3]} 22. dxc5
{[%clk 0:01:15.9]} 22... Bxc5 {[%clk 0:02:17.6]} 23. Bf4 {[%clk 0:01:14.6]}
23... Rxb1 {[%clk 0:02:15.9]} 24. Rxb1 {[%clk 0:01:13.5]} 24... Rc8 {[%clk
0:02:11.4]} 25. Ne5 {[%clk 0:01:06.6]} 25... Qa6 {[%clk 0:01:54]} 26. a4 {[%clk
0:01:03.2]} 26... Bd6 {[%clk 0:01:52.9]} 27. Rb5 {[%clk 0:01:01.3]} 27... Bxe5
{[%clk 0:01:51.8]} 28. Bxe5 {[%clk 0:01:01]} 28... Qc6+ {[%clk 0:01:52.3]} 29.
Kh2 {[%clk 0:00:56.4]} 29... Ne4 {[%clk 0:01:44.9]} 30. Rb8 {[%clk 0:00:49.1]}
30... Ng5 {[%clk 0:01:44.1]} 31. Rxc8+ {[%clk 0:00:47]} 31... Qxc8 {[%clk
0:01:45]} 32. Qe2 {[%clk 0:00:16.7]} 32... Qc6 {[%clk 0:01:42.6]} 33. g4 {[%clk
0:00:10.5]} 33... Qf3 {[%clk 0:01:21.5]} 34. Qf1 {[%clk 0:00:10.3]} 34... Qe4
{[%clk 0:01:18.2]} 35. Bg3 {[%clk 0:00:06.9]} 35... Nf3+ {[%clk 0:01:18.2]} 36.
Kh1 {[%clk 0:00:04.5]} 36... Nd2+ {[%clk 0:01:18.4]} 37. Qg2 {[%clk 0:00:04.6]}
37... Qxg2+ {[%clk 0:01:18.5]} 38. Kxg2 {[%clk 0:00:04.8]} 38... Nxc4 {[%clk
0:01:19.2]} 39. Bb8 {[%clk 0:00:04.3]} 39... a6 {[%clk 0:01:18.4]} 40. Kf3
{[%clk 0:00:03.5]} 40... Kf8 {[%clk 0:01:16.1]} 41. Ke4 {[%clk 0:00:03.6]} 41...
Ke7 {[%clk 0:01:16.6]} 42. Kd4 {[%clk 0:00:03.6]} 42... Nb2 {[%clk 0:01:13.5]}
43. a5 {[%clk 0:00:03.4]} 43... Kd7 {[%clk 0:01:14]} 44. Kc5 {[%clk 0:00:03.5]}
44... Nd3+ {[%clk 0:01:12.1]} 45. Kb6 {[%clk 0:00:02.8]} 45... Nxf2 {[%clk
0:01:12.7]} 46. Kxa6 {[%clk 0:00:02.9]} 46... Kc6 {[%clk 0:01:13.4]} 47. Be5
{[%clk 0:00:02.6]} 47... f6 {[%clk 0:01:12.9]} 48. Bg3 {[%clk 0:00:02.7]} 48...
Nxh3 {[%clk 0:01:10.4]} 49. Ka7 {[%clk 0:00:02.2]} 49... e5 {[%clk 0:01:11]} 50.
a6 {[%clk 0:00:02.3]} 50... Kc7 {[%clk 0:01:11.3]} 51. Ka8 {[%clk 0:00:01.5]}
51... g5 {[%clk 0:01:11]} 52. a7 {[%clk 0:00:02]} 52... Kc8 {[%clk 0:01:07]} 53.
Bxe5 {[%clk 0:00:01.9]} 53... h5 {[%clk 0:01:04.5]} 54. Bxf6 {[%clk 0:00:02.1]}
54... hxg4 {[%clk 0:01:04.5]} 55. Bxg5 {[%clk 0:00:02.3]} 55... g3 {[%clk
0:01:05.2]} 56. Be3 {[%clk 0:00:02.2]} 56... g2 {[%clk 0:01:05.8]} 57. Bd4
{[%clk 0:00:02.5]} 57... Nf4 {[%clk 0:01:06]} 58. Bc5 {[%clk 0:00:02.8]} 58...
Ne6 {[%clk 0:01:06.4]} 59. Bb6 {[%clk 0:00:02.2]} 59... g1=Q {[%clk 0:01:06.3]}
60. Bxg1 {[%clk 0:00:01.4]} 60... Nc7# {[%clk 0:01:06.5]} 0-1

[Event "Early-Titled-Tuesday-Blitz-April-02-2024"]
[Site "Chess.com"]
[Date "2024.04.02"]
[Round "1"]
[White "smotherhubbard"]
[Black "manitodeplomo"]
[Result "0-1"]
[WhiteElo "2347"]
[BlackElo "2650"]
[TimeControl "180+1"]
[EndTime "8:07:29 PDT"]
[Termination "manitodeplomo won on time"]

1. d4 {[%clk 0:03:00.9]} 1... g6 {[%clk 0:02:55.6]} 2. e4 {[%clk 0:03:00.2]}
2... Bg7 {[%clk 0:02:55.1]} 3. Nc3 {[%clk 0:02:59.7]} 3... c6 {[%clk 0:02:52.6]}
4. Be3 {[%clk 0:02:58.8]} 4... Qb6 {[%clk 0:02:51.9]} 5. Rb1 {[%clk 0:02:57.1]}
5... d6 {[%clk 0:02:45]} 6. Bc4 {[%clk 0:02:54.2]} 6... Nf6 {[%clk 0:02:43.7]}
7. Nge2 {[%clk 0:02:50.5]} 7... O-O {[%clk 0:02:41.3]} 8. f3 {[%clk 0:02:47.3]}
8... d5 {[%clk 0:02:34.4]} 9. Bb3 {[%clk 0:02:38.1]} 9... dxe4 {[%clk
0:02:32.8]} 10. fxe4 {[%clk 0:02:39]} 10... Rd8 {[%clk 0:02:26.5]} 11. Qc1
{[%clk 0:02:33]} 11... Ng4 {[%clk 0:02:12.4]} 12. O-O {[%clk 0:02:31.6]} 12...
e6 {[%clk 0:02:05.4]} 13. Bg5 {[%clk 0:02:14.2]} 13... Rxd4 {[%clk 0:01:56]} 14.
Nxd4 {[%clk 0:01:57.9]} 14... Qxd4+ {[%clk 0:01:56.9]} 15. Kh1 {[%clk
0:01:57.1]} 15... Nf2+ {[%clk 0:01:55.8]} 16. Rxf2 {[%clk 0:01:56.8]} 16... Qxf2
{[%clk 0:01:56.7]} 17. Be3 {[%clk 0:01:44.1]} 17... Qh4 {[%clk 0:01:53.5]} 18.
Qd2 {[%clk 0:01:42.9]} 18... Nd7 {[%clk 0:01:51.8]} 19. Bg5 {[%clk 0:01:40.5]}
19... Qh5 {[%clk 0:01:47.5]} 20. Rf1 {[%clk 0:01:30.1]} 20... h6 {[%clk
0:01:43.8]} 21. Be7 {[%clk 0:01:04.7]} 21... a5 {[%clk 0:01:12.4]} 22. Ne2
{[%clk 0:00:56.5]} 22... a4 {[%clk 0:00:59.7]} 23. Bc4 {[%clk 0:00:44.1]} 23...
b5 {[%clk 0:00:51.1]} 24. Ng3 {[%clk 0:00:43.4]} 24... Qe5 {[%clk 0:00:41.7]}
25. Bd3 {[%clk 0:00:27.8]} 25... Qxb2 {[%clk 0:00:39.2]} 26. Qf2 {[%clk
0:00:26.4]} 26... Ne5 {[%clk 0:00:34.3]} 27. Bd6 {[%clk 0:00:21.3]} 27... f5
{[%clk 0:00:21.2]} 28. Qb6 {[%clk 0:00:13.4]} 28... Nf7 {[%clk 0:00:15.8]} 29.
exf5 {[%clk 0:00:09.5]} 29... exf5 {[%clk 0:00:14.1]} 30. Qxc6 {[%clk
0:00:08.6]} 30... Nxd6 {[%clk 0:00:05.9]} 31. Qxa8 {[%clk 0:00:08.4]} 31... Kh7
{[%clk 0:00:05.8]} 32. Qd5 {[%clk 0:00:07.8]} 32... Qd4 {[%clk 0:00:05.8]} 33.
Qc6 {[%clk 0:00:06.9]} 33... Be6 {[%clk 0:00:04.5]} 34. h4 {[%clk 0:00:07]}
34... Qxh4+ {[%clk 0:00:04]} 35. Kg1 {[%clk 0:00:07.5]} 35... Bd4+ {[%clk
0:00:04]} 36. Rf2 {[%clk 0:00:07.1]} 36... Qxg3 {[%clk 0:00:04.5]} 37. Qc7+
{[%clk 0:00:07.3]} 37... Bf7 {[%clk 0:00:04]} 0-1